bitfinex/quotes_ETHUSD_20250726
["timestamp","ask_amount","ask_price","bid_price","bid_amount"]
[1753519646958,1e-08,3762.0,3761.9,9.72293121]
[1753519647164,1e-08,3762.0,3761.9,12.37375967]
[1753519648178,1e-08,3762.0,3761.9,12.92375967]
[1753519648941,1e-08,3762.3,3762.2,3.80891924]
[1753519649237,1e-08,3762.3,3762.2,13.97180756]
[1753519649461,1e-08,3762.8,3762.7,2.65766603]
[1753519649666,1e-08,3762.8,3762.7,13.39487416]
[1753519649837,1e-08,3762.8,3762.7,13.52767416]
[1753519650687,1e-08,3763.1,3763.0,2.65745415]
[1753519650841,1e-08,3763.1,3763.0,10.19975793]
[1753519652041,0.49210001,3763.1,3763.0,10.19975793]
[1753519652466,0.93120001,3763.1,3763.0,7.78875793]
[1753519652664,0.93120001,3763.1,3763.0,5.65745415]
[1753519652864,0.93120001,3763.1,3763.0,8.06845415]
[1753519655076,0.93120001,3763.1,3763.0,5.65745415]
[1753519655378,0.93120001,3763.1,3763.0,8.06845415]
[1753519656582,0.93120001,3763.1,3763.0,9.16145985]
[1753519656742,1e-08,3763.1,3763.0,9.16145985]
[1753519657352,0.49210001,3763.1,3763.0,9.16145985]
[1753519657760,0.93120001,3763.1,3763.0,9.16145985]
[1753519658081,0.93120001,3763.1,3763.0,8.06845415]
[1753519658586,0.49210001,3763.1,3763.0,8.06845415]
[1753519658793,0.93120001,3763.1,3763.0,8.06845415]
[1753519660395,1e-08,3763.1,3763.0,12.79376228]
[1753519660712,1e-08,3763.1,3763.0,15.09299879]
[1753519661186,1e-08,3763.1,3763.0,15.64299879]
[1753519661386,1e-08,3763.1,3763.0,16.12059879]
[1753519661578,1e-08,3763.1,3763.0,15.64299879]
[1753519663494,0.002,3763.6,3763.5,2.6571011]
[1753519663654,0.002,3763.6,3763.5,13.32483851]
[1753519663992,0.4941,3763.6,3763.5,13.45763851]
[1753519664587,0.002,3763.6,3763.5,13.45763851]
[1753519665495,0.4941,3763.6,3763.5,13.45763851]
[1753519666102,0.002,3763.6,3763.5,13.45763851]
[1753519666641,0.7513,3764.7,3764.6,2.6563247]
[1753519666776,0.9312,3764.7,3764.6,10.0582653]
[1753519668711,2.65462567,3767.1,3764.6,10.0582653]
[1753519668712,0.7513,3765.5,3765.3,2.65583087]
[1753519668914,0.7513,3765.5,3765.4,5.07076034]
[1753519669106,0.7513,3765.5,3765.4,5.84341946]
[1753519669480,1.665,3765.5,3765.4,5.84341946]
[1753519670003,1.665,3765.5,3765.0,2.65602395]
[1753519670305,0.9137,3765.4,3765.3,2.65582127]
[1753519671193,0.9137,3765.4,3765.3,2.65583087]
[1753519672310,0.9137,3765.4,3765.2,2.65589217]
[1753519672474,0.7533,3765.5,3765.3,2.65582948]
[1753519672674,0.7533,3765.5,3765.4,0.50728295]
[1753519672880,0.7533,3765.5,3765.1,5.07191663]
[1753519673112,0.9137,3765.4,3765.1,5.07191663]
[1753519673312,0.7533,3765.5,3765.1,5.07191663]
[1753519673492,0.9137,3765.3,3765.1,5.07191663]
[1753519673691,0.7533,3765.5,3765.2,0.77280197]
[1753519674312,0.9137,3765.4,3765.2,0.77280197]
[1753519674510,1.741,3765.3,3764.8,2.416]
[1753519674710,0.9137,3765.2,3764.8,2.416]
[1753519675009,0.4582,3765.2,3765.1,2.65591969]
[1753519675179,1.2828,3765.3,3765.2,2.65590141]
[1753519675384,0.4602,3765.5,3765.4,2.65576034]
[1753519675732,0.002,3765.5,3765.4,2.65576034]
[1753519676009,0.002,3765.5,3765.4,5.07176034]
[1753519676219,0.9157,3765.5,3765.4,5.07176034]
[1753519676515,0.9157,3765.5,3765.4,5.92180684]
[1753519676680,0.9157,3765.5,3765.4,6.05460684]
[1753519677901,0.9157,3765.5,3765.4,3.63860684]
[1753519680394,0.9157,3765.5,3765.4,0.9828465]
[1753519680607,0.9157,3765.5,3765.4,0.1328]
[1753519681290,0.9157,3765.5,3765.4,2.78856034]
[1753519681490,0.9157,3765.5,3765.4,0.1328]
[1753519685739,0.9157,3765.5,3765.4,2.78856034]
[1753519687427,0.9157,3765.5,3765.4,0.1328]
[1753519687729,0.4602,3765.5,3765.4,2.78856034]
[1753519688730,0.002,3765.5,3765.4,2.78856034]
[1753519688926,0.002,3765.5,3765.4,3.6517819]
[1753519689322,0.002,3765.5,3765.4,6.0647819]
[1753519689714,0.002,3765.5,3765.4,6.9914819]
[1753519691200,0.002,3765.5,3765.4,6.5471819]
[1753519691811,0.002,3765.5,3765.4,6.0647819]
[1753519693724,0.002,3765.5,3765.4,12.18489003]
[1753519694121,0.002,3765.5,3765.4,11.25819003]
[1753519694436,0.002,3765.5,3765.4,7.0242819]
[1753519694639,0.002,3765.5,3765.4,7.4685819]
[1753519695765,0.002,3765.5,3765.4,6.5418819]
[1753519697710,0.002,3765.5,3765.4,3.5189819]
[1753519697946,0.002,3765.5,3765.4,3.5455395]
[1753519698145,0.002,3765.5,3765.4,3.5189819]
[1753519698346,0.461,3765.5,3765.4,3.5189819]
[1753519699045,0.9277,3765.5,3765.4,0.86322156]
[1753519699244,0.9277,3765.5,3765.3,2.65579469]
[1753519699436,0.002,3765.5,3765.4,2.65576034]
[1753519700238,0.002,3765.5,3765.4,3.28321794]
[1753519700440,0.002,3765.5,3765.4,3.76561794]
[1753519700640,0.002,3765.5,3765.4,4.22581794]
[1753519700835,0.002,3765.5,3765.4,5.70599972]
[1753519701019,0.002,3765.5,3765.4,5.67944212]
[1753519701730,0.002,3765.5,3765.4,5.21924212]
[1753519701941,0.002,3765.5,3765.4,4.13594212]
[1753519702153,0.9277,3765.5,3765.4,6.56094212]
[1753519702359,0.002,3765.5,3765.4,6.56094212]
[1753519703568,0.002,3765.5,3765.4,6.69374212]
[1753519705549,0.002,3765.5,3765.4,7.17614212]
[1753519706934,0.002,3765.5,3765.4,6.69374212]
[1753519710546,0.002,3765.5,3765.4,7.17614212]
[1753519711662,0.002,3765.5,3765.4,6.69374212]
[1753519713886,0.002,3765.5,3765.4,7.17614212]
[1753519714972,0.002,3765.5,3765.4,6.69374212]
[1753519716253,0.9277,3765.5,3765.4,6.69374212]
[1753519717173,0.002,3765.5,3765.4,6.69374212]
[1753519717469,0.002,3765.5,3765.4,9.69374212]
[1753519717770,0.002,3765.5,3765.4,11.23724212]
[1753519717999,0.1328,3767.2,3766.2,3.6009]
[1753519718000,0.2487566,3767.1,3766.2,3.6009]
[1753519718147,0.7077566,3767.2,3767.0,2.65457095]
[1753519718345,0.459,3767.2,3767.1,5.08556186]
[1753519718585,0.4667,3767.2,3767.1,5.08556186]
[1753519719179,0.9257,3767.2,3767.1,5.08556186]
[1753519719488,0.459,3767.2,3767.1,5.08556186]
[1753519719784,0.459,3767.2,3767.1,5.87286506]
[1753519720285,0.9257,3767.2,3767.1,3.2173032]
[1753519720468,0.9257,3767.2,3767.1,5.08456186]
[1753519720981,0.459,3767.2,3767.1,5.08456186]
[1753519721668,0.9257,3767.2,3767.1,5.08456186]
[1753519723792,0.7816,3767.5,3767.4,2.65435048]
[1753519723965,1.2483,3767.5,3767.4,2.78715048]
[1753519724161,0.7816,3767.5,3767.4,2.78715048]
[1753519724490,1.7073,3767.5,3767.4,0.1328]
[1753519726358,0.459,3767.5,3767.4,3.05757207]
[1753519726553,0.459,3767.7,3767.4,3.05757207]
[1753519726759,0.459,3767.6,3767.5,2.65428002]
[1753519726959,0.9257,3767.6,3767.4,5.35375358]
[1753519727274,0.9257,3767.6,3767.5,2.78708002]
[1753519727479,0.4667,3767.6,3767.5,2.78708002]
[1753519727992,0.4667,3767.6,3767.5,3.60117923]
[1753519728189,1.2458,3767.8,3767.6,2.65416738]
[1753519728372,0.7924,3767.8,3767.6,2.65416738]
[1753519728571,0.8917,3767.7,3767.5,3.46836013]
[1753519728984,0.7924,3767.8,3767.6,0.1328]
[1753519729188,0.4383,3767.7,3767.6,0.1328]
[1753519729382,0.7924,3767.8,3767.6,0.73847775]
[1753519729596,1.2307,3767.8,3767.7,2.65413912]
[1753519730191,1.6841,3767.8,3767.7,2.65413912]
[1753519731394,1.6841,3767.8,3767.6,3.39267227]
[1753519731596,0.4534,3767.7,3767.6,3.39267227]
[1753519732216,0.4534,3767.9,3767.8,2.65406868]
[1753519732590,0.4534,3767.9,3767.8,2.78686868]
[1753519733004,0.8917,3767.9,3767.8,2.78686868]
[1753519733183,0.4534,3767.9,3767.8,2.78686868]
[1753519734206,0.4534,3767.9,3767.8,2.78128286]
[1753519734515,0.7924,3768.3,3767.9,2.65399824]
[1753519734692,0.7924,3768.3,3767.8,0.1328]
[1753519734894,0.7924,3768.3,3767.7,2.68068049]
[1753519734895,0.002,3767.8,3767.7,2.68068049]
[1753519735091,0.002,3767.8,3767.7,3.4908978]
[1753519735292,0.002,3767.8,3767.7,3.6236978]
[1753519735605,0.002,3767.8,3767.7,6.0496978]
[1753519741750,0.002,3768.6,3767.7,6.0496978]
[1753519741751,0.00488421,3769.0,3768.9,2.65329406]
[1753519741907,0.00488421,3769.0,3768.9,10.37860219]
[1753519742107,0.00488421,3769.0,3768.9,16.01635502]
[1753519742404,0.45828421,3769.0,3768.9,7.93524689]
[1753519742609,0.00488421,3769.0,3768.9,7.33434689]
[1753519742912,0.00488421,3769.0,3768.9,7.53569638]
[1753519743110,0.00488421,3769.0,3768.9,12.26100451]
[1753519743330,0.007503,3770.0,3769.3,6.25391249]
[1753519743511,2.43550991,3770.7,3769.3,6.25391249]
[1753519743512,3.907186,3771.3,3770.3,3.25320883]
[1753519743710,0.004,3773.1,3771.2,3.0]
[1753519743943,0.15244086,3773.1,3771.9,2.65118375]
[1753519744119,0.4534,3772.8,3771.9,2.65118375]
[1753519744449,0.47880765,3772.0,3771.3,1.13262081]
[1753519744667,1.73960765,3772.0,3770.6,2.464]
[1753519744952,0.8917,3771.9,3770.7,2.65202747]
[1753519745160,0.84790765,3772.0,3770.8,3.0]
[1753519745339,0.8917,3771.9,3770.9,2.465]
[1753519745539,2.65147088,3771.5,3770.9,0.26646344]
[1753519745709,0.8917,3771.4,3770.9,0.26646344]
[1753519745904,0.8917,3771.4,3770.4,3.0669]
[1753519746134,0.4534,3771.3,3770.5,3.0]
[1753519746944,0.4383,3771.4,3770.6,0.48632097]
[1753519747158,0.4534,3771.6,3770.8,3.0]
[1753519747366,0.4534,3771.6,3770.9,0.88685203]
[1753519747579,0.4534,3771.6,3771.1,2.65173174]
[1753519747879,0.4534,3771.9,3771.4,2.65153266]
[1753519748047,0.02540765,3772.0,3771.5,0.48631464]
[1753519748363,0.02540765,3772.0,3771.5,3.11125636]
[1753519748565,0.02540765,3772.0,3771.6,2.6513933]
[1753519748723,0.02540765,3772.0,3771.8,2.65121713]
[1753519748927,0.02540765,3772.0,3771.7,2.65132229]
[1753519749224,0.02540765,3772.0,3771.5,0.466]
[1753519749465,0.02540765,3772.0,3771.9,5.65118375]
[1753519749955,0.02540765,3772.0,3771.9,6.11098375]
[1753519750162,0.02540765,3772.0,3771.9,8.57698375]
[1753519750528,0.02540765,3772.0,3771.9,9.04298375]
[1753519750859,0.004,3773.1,3772.0,3.0]
[1753519751064,0.004,3773.1,3772.8,2.65051127]
[1753519751250,0.4574,3773.1,3772.8,2.65049517]
[1753519751451,0.8917,3773.0,3772.8,2.65049517]
[1753519751654,0.4534,3772.9,3772.8,2.65049517]
[1753519751858,0.8917,3772.9,3772.7,2.65060424]
[1753519752052,0.004,3773.1,3772.8,2.6505293]
[1753519752234,0.004,3773.1,3772.3,2.468]
[1753519752647,0.8917,3773.0,3772.7,2.65055753]
[1753519752962,0.8917,3773.0,3772.3,5.11884945]
[1753519752963,0.8917,3772.9,3772.3,5.11884945]
[1753519753173,0.8917,3772.8,3771.5,3.0]
[1753519753342,0.8917,3772.7,3772.0,2.65110121]
[1753519753547,0.8917,3772.6,3771.8,2.65118727]
[1753519753857,2.65062157,3772.7,3772.6,0.1328]
[1753519754164,2.65056303,3772.8,3772.5,0.1328]
[1753519754367,0.828,3772.7,3772.5,0.1328]
[1753519754563,0.828,3772.7,3772.6,0.1328]
[1753519754775,1.7197,3772.7,3772.6,0.1328]
[1753519755139,0.828,3772.7,3772.6,0.1328]
[1753519755339,0.004,3773.1,3772.7,2.65062157]
[1753519755667,0.004,3773.1,3772.6,0.15930691]
[1753519755668,0.004,3773.1,3773.0,2.65041081]
[1753519755884,0.004,3773.1,3772.4,0.6009]
[1753519755885,0.4534,3773.0,3772.4,0.6009]
[1753519756071,0.8917,3773.0,3772.0,3.0]
[1753519756383,0.004,3773.1,3772.9,0.1328]
[1753519756873,0.8917,3773.0,3772.9,0.1328]
[1753519757068,0.4383,3773.0,3772.9,0.1328]
[1753519757284,0.8917,3773.0,3772.9,0.1328]
[1753519759167,0.4534,3773.0,3772.9,0.1328]
[1753519759366,1.2554,3773.0,3772.9,0.1328]
[1753519759539,1.6924,3773.0,3772.9,0.1328]
[1753519760781,1.2674,3773.0,3772.9,0.1328]
[1753519761078,1.7044,3773.0,3772.9,0.1328]
[1753519761885,0.802,3773.0,3772.9,0.1328]
[1753519762069,1.7044,3773.0,3772.9,0.1328]
[1753519764294,2.473,3773.1,3773.0,2.65041081]
[1753519764464,2.473,3773.1,3772.9,2.78328062]
[1753519764679,0.4654,3773.0,3772.9,2.78328062]
[1753519765094,0.9024,3773.0,3772.9,0.1328]
[1753519765606,0.9024,3773.0,3772.9,2.78328106]
[1753519765775,2.472,3773.1,3772.9,2.78328106]
[1753519765973,2.472,3773.1,3772.9,0.1328]
[1753519766188,0.9024,3773.0,3772.9,0.1328]
[1753519766576,0.437,3773.0,3772.9,0.1328]
[1753519766762,0.9024,3773.0,3772.9,0.1328]
[1753519766963,0.004,3773.1,3772.9,0.1328]
[1753519767202,2.467,3773.0,3772.9,2.78328106]
[1753519767420,0.004,3773.1,3772.9,2.78328106]
[1753519767699,2.471,3773.1,3772.9,0.1328]
[1753519767864,0.9024,3773.0,3772.9,0.1328]
[1753519768503,0.004,3773.1,3773.0,2.65041081]
[1753519768674,2.472,3773.1,3772.9,0.1328]
[1753519769011,0.4694,3773.1,3772.9,2.78327256]
[1753519769309,2.472,3773.1,3772.9,2.783265]
[1753519769467,0.004,3773.1,3773.0,2.65041081]
[1753519769989,0.004,3773.1,3773.0,4.11328996]
[1753519771166,0.004,3773.1,3773.0,4.08678586]
[1753519771621,0.002,3774.3,3773.1,0.55]
[1753519771779,0.002,3774.3,3773.0,7.68768586]
[1753519771780,0.002,3774.3,3774.2,0.1328]
[1753519771978,3.45481298,3774.3,3774.2,0.1328]
[1753519772298,2.64964737,3774.1,3773.9,0.1328]
[1753519772503,2.64970853,3774.0,3773.9,0.1328]
[1753519772701,0.8033,3773.2,3772.2,3.25186307]
[1753519772903,0.8033,3773.2,3772.2,2.65092034]
[1753519772904,2.65043611,3773.0,3772.2,2.65092034]
[1753519773201,0.4654,3773.0,3772.9,0.1328]
[1753519773364,2.65041081,3773.0,3772.9,0.1328]
[1753519773562,3.08741081,3773.0,3772.9,0.1328]
[1753519774006,3.55281081,3773.0,3772.9,0.1328]
[1753519774204,0.8033,3773.2,3772.9,0.1328]
[1753519774411,2.473,3773.5,3773.2,2.65026807]
[1753519774619,0.8033,3773.6,3773.2,0.26502681]
[1753519774914,1.72484153,3774.5,3773.9,2.64977874]
[1753519775221,1.72484153,3774.5,3773.4,0.6009]
[1753519775222,0.01914153,3774.5,3774.2,2.64956812]
[1753519775509,2.49314153,3774.5,3774.2,3.17949124]
[1753519775716,0.01914153,3774.5,3774.2,3.17949124]
[1753519776082,0.24829376,3774.3,3774.2,2.64956812]
[1753519776412,0.24829376,3774.3,3774.1,2.64958372]
[1753519776716,0.24629376,3774.2,3774.0,2.64969518]
[1753519776917,0.24629376,3774.1,3773.5,2.65000515]
[1753519777258,0.24659946,3774.0,3773.9,2.64977728]
[1753519777518,0.71199946,3774.0,3773.7,2.64985507]
[1753519777724,1.14899946,3773.9,3773.2,0.26502681]
[1753519777929,0.24662167,3773.8,3773.3,3.32965845]
[1753519778144,0.4654,3773.8,3773.3,2.65018577]
[1753519778433,0.002,3774.3,3773.1,3.0]
[1753519778434,0.002,3774.3,3774.2,2.64956812]
[1753519778587,0.4674,3774.3,3773.8,3.0]
[1753519778796,0.002,3774.3,3774.0,2.64966838]
[1753519779002,0.002,3774.3,3773.8,3.00987192]
[1753519779209,0.002,3774.3,3773.9,2.6497611]
[1753519779687,0.002,3774.3,3773.8,0.36009]
[1753519780120,0.9024,3774.2,3773.2,1.0557]
[1753519780323,0.9024,3774.2,3773.2,4.0557]
[1753519780630,3.3804,3774.2,3773.6,2.64992365]
[1753519780924,3.3804,3774.2,3773.2,4.0557]
[1753519780925,0.002,3774.3,3773.2,3.6009]
[1753519781131,2.478,3774.2,3773.7,2.64986155]
[1753519781285,0.4654,3774.1,3773.7,2.64986155]
[1753519781486,0.437,3774.2,3773.8,2.64983213]
[1753519781785,2.479,3774.2,3773.7,0.52999114]
[1753519781991,0.9024,3774.1,3773.7,0.52999114]
[1753519782301,0.4654,3774.1,3773.7,0.52999114]
[1753519782507,0.7665,3774.2,3773.5,2.65005962]
[1753519782705,1.4787689,3774.2,3773.7,2.64986201]
[1753519782927,0.4654,3774.1,3773.7,2.64986201]
[1753519783227,0.9024,3774.1,3773.6,2.64992386]
[1753519783428,0.4654,3774.0,3773.6,2.64992386]
[1753519783613,0.7665,3774.2,3773.6,3.17992778]
[1753519783812,0.4654,3774.0,3773.5,2.65005117]
[1753519784002,0.2469308,3774.1,3773.6,2.64997162]
[1753519784206,0.7665,3774.2,3773.6,2.64997162]
[1753519784207,0.4654,3773.9,3773.6,2.64997162]
[1753519784403,0.4654,3773.9,3772.9,0.4382]
[1753519784606,0.9024,3773.8,3773.5,2.65005872]
[1753519784931,0.4654,3773.7,3773.5,2.65005872]
[1753519785130,1.2319,3774.2,3773.7,0.1328]
[1753519785333,1.2319,3774.2,3773.3,2.65018217]
[1753519785334,1.14962647,3774.1,3773.3,2.65018217]
[1753519785518,0.24722647,3774.0,3773.3,2.65018217]
[1753519785723,0.4654,3774.1,3774.0,0.1328]
[1753519785912,0.71262774,3774.1,3773.9,0.1328]
[1753519786112,3.2425,3774.2,3773.9,0.1328]
[1753519786431,2.476,3774.1,3773.9,0.1328]
[1753519786610,2.9414,3774.1,3773.6,2.64998492]
[1753519786797,2.9414,3774.1,3773.3,2.67667375]
[1753519786798,0.9024,3774.0,3773.5,2.650058]
[1753519786997,0.9024,3773.9,3773.5,2.650058]
[1753519787197,0.9024,3773.9,3773.6,2.64998594]
[1753519787398,2.476,3774.1,3773.8,0.1328]
[1753519787835,2.476,3774.1,3774.0,0.1328]
[1753519788235,2.476,3774.2,3774.0,2.78249932]
[1753519788529,0.4509,3774.2,3774.0,0.1328]
[1753519789133,0.55,3774.1,3774.0,0.1328]
[1753519789311,3.3762,3774.1,3773.4,2.65012413]
[1753519789513,3.54990853,3774.0,3773.8,0.1328]
[1753519789837,0.9002,3774.0,3773.8,0.1328]
[1753519790133,0.9002,3773.9,3773.5,0.1328]
[1753519790337,0.9002,3773.9,3773.4,2.65009863]
[1753519790338,2.476,3773.8,3773.4,2.65009863]
[1753519790536,2.2797,3773.7,3772.6,0.001]
[1753519790735,2.89727537,3773.6,3773.0,0.1328]
[1753519791030,2.89727537,3773.6,3772.6,0.001]
[1753519791031,2.65013116,3773.4,3773.2,0.1328]
[1753519791233,0.247258,3773.3,3773.2,0.1328]
[1753519791439,4.62715809,3773.3,3773.2,0.1328]
[1753519791736,1.976958,3773.3,3772.6,0.001]
[1753519791938,3.79779067,3773.2,3772.8,0.1328]
[1753519792249,2.89760154,3773.1,3772.8,0.1328]
[1753519792536,2.729258,3773.0,3772.8,0.1328]
[1753519792703,2.89773906,3772.9,3772.8,0.1328]
[1753519792900,1.976958,3772.9,3772.6,0.001]
[1753519793105,0.698158,3772.8,3772.7,0.1328]
[1753519793305,2.729258,3772.8,3772.7,0.1328]
[1753519793739,3.629458,3772.8,3772.7,0.1328]
[1753519794531,3.179158,3772.8,3772.7,0.1328]
[1753519795443,3.628458,3772.8,3772.7,0.1328]
[1753519795639,1.14765703,3772.8,3772.7,0.1328]
[1753519795838,3.62865703,3772.8,3772.7,0.1328]
[1753519796861,6.27920834,3772.8,3772.7,0.1328]
[1753519797039,3.62865703,3772.8,3772.7,0.1328]
[1753519797643,6.27920834,3772.8,3772.7,0.1328]
[1753519799049,2.65062157,3772.7,3772.6,0.1338]
[1753519799254,3.7982786,3772.7,3772.6,0.1338]
[1753519799654,1.14765703,3772.7,3772.6,0.1338]
[1753519800333,3.7982786,3772.7,3772.6,0.1338]
[1753519800527,1.14765703,3772.7,3772.6,0.1338]
[1753519800965,3.7982786,3772.7,3772.6,0.1338]
[1753519801792,3.7982786,3772.7,3772.6,0.001]
[1753519802968,4.7306786,3772.7,3772.6,0.001]
[1753519803553,4.1485786,3772.7,3772.6,0.001]
[1753519803754,6.62429678,3772.7,3772.6,0.001]
[1753519803970,6.37712157,3772.7,3772.6,0.001]
[1753519804181,0.7996,3772.7,3772.6,0.001]
[1753519804391,0.24713967,3772.9,3772.8,2.65055131]
[1753519804678,2.48,3773.8,3773.3,0.6009]
[1753519804865,2.48,3773.8,3773.5,2.65000549]
[1753519805067,2.48,3773.8,3773.7,0.1328]
[1753519805469,0.002,3773.8,3773.7,0.1328]
[1753519808820,4.35554895,3773.8,3773.7,0.1328]
[1753519808974,2.64996304,3773.7,3773.4,0.1328]
[1753519809301,2.476,3773.6,3773.4,0.1328]
[1753519809513,6.02622662,3773.6,3773.4,0.1328]
[1753519809793,2.65020009,3773.3,3772.6,0.001]
[1753519810004,0.002,3773.8,3773.5,0.1328]
[1753519810152,0.002,3773.8,3773.1,0.6009]
[1753519810153,0.002,3773.8,3773.2,0.1328]
[1753519810357,0.002,3773.8,3773.7,0.1328]
[1753519810990,1.2564,3773.8,3773.7,0.1328]
[1753519811409,0.002,3773.8,3773.7,0.1328]
[1753519811618,2.485,3773.8,3773.7,0.1328]
[1753519811798,0.002,3773.8,3773.7,2.78271917]
[1753519812121,0.002,3773.8,3773.7,3.32600257]
[1753519812326,0.002,3773.8,3773.7,7.89190176]
[1753519812610,0.002,3773.8,3773.7,7.86540257]
[1753519813095,0.002,3773.8,3773.7,7.40930257]
[1753519813302,0.002,3773.8,3773.7,6.92690257]
[1753519814426,1e-08,3773.8,3773.7,7.73260257]
[1753519817710,1e-08,3773.8,3773.7,8.28260257]
[1753519820042,1e-08,3773.8,3773.7,6.79410257]
[1753519820237,1e-08,3773.8,3773.7,7.70230257]
[1753519820438,1e-08,3773.8,3773.7,10.73430257]
[1753519821538,1e-08,3773.8,3773.7,10.18430257]
[1753519822439,1e-08,3773.8,3773.7,10.73430257]
[1753519822640,1e-08,3773.8,3773.7,10.73201075]
[1753519824237,1e-08,3773.8,3773.7,9.27381075]
[1753519824434,1e-08,3773.8,3773.7,10.31481075]
[1753519826241,1e-08,3773.8,3773.7,10.31229648]
[1753519826943,1e-08,3773.8,3773.7,9.86439648]
[1753519827658,1e-08,3773.8,3773.7,10.31229648]
[1753519830352,1e-08,3773.8,3773.7,9.95409648]
[1753519830520,1e-08,3774.3,3774.2,2.64956812]
[1753519830854,1e-08,3774.3,3774.2,5.12556812]
[1753519831056,1e-08,3774.3,3774.2,5.2848638]
[1753519832357,0.002,3774.6,3774.5,2.64935753]
[1753519832358,1e-08,3774.6,3774.5,2.64935753]
[1753519832527,0.8019,3776.6,3774.5,2.64935753]
[1753519832528,1.37228152,3778.9,3775.4,28.448827]
[1753519832727,6.1826436,3780.6,3775.4,28.448827]
[1753519832728,3.31663686,3780.6,3778.8,6.96320684]
[1753519832928,1.3455096,3781.3,3779.0,2.64620269]
[1753519833142,0.02728451,3781.4,3779.1,2.56946132]
[1753519833143,0.4425,3781.2,3779.1,2.56946132]
[1753519833455,0.4425,3781.2,3779.8,0.55]
[1753519833619,0.4425,3781.2,3780.0,2.64550264]
[1753519833817,0.4425,3781.2,3780.1,0.47339584]
[1753519834232,0.4425,3781.2,3780.2,0.02645362]
[1753519834456,0.4425,3781.2,3780.9,2.64485189]
[1753519834644,0.9405,3781.1,3779.6,3.0]
[1753519834829,0.9405,3781.1,3780.0,3.0]
[1753519835031,0.9405,3781.1,3780.6,2.64507615]
[1753519835032,0.4425,3781.0,3780.6,2.64507615]
[1753519835356,0.9405,3781.0,3780.1,2.64541184]
[1753519835555,0.4425,3780.9,3779.2,2.568]
[1753519835851,0.8006,3780.6,3779.2,3.0]
[1753519836062,3.58570202,3780.5,3779.0,0.19568968]
[1753519836266,0.01,3783.0,3779.9,5.16847045]
[1753519836434,0.01,3783.0,3780.3,2.64523947]
[1753519836435,2.64435164,3781.7,3780.3,2.64523947]
[1753519836636,3.58491639,3781.6,3780.2,3.0]
[1753519836839,0.8006,3781.4,3779.2,3.0]
[1753519837040,0.8006,3781.4,3779.1,0.793885]
[1753519837041,5.16847045,3780.9,3779.1,0.793885]
[1753519837241,3.58545397,3780.8,3779.1,3.4400071]
[1753519837560,2.64471377,3781.2,3779.2,0.02646062]
[1753519837716,0.4425,3780.9,3779.2,2.64599856]
[1753519837919,0.498,3780.8,3779.1,2.64608557]
[1753519838119,0.4425,3780.7,3779.2,0.28417752]
[1753519838354,0.4425,3780.7,3779.1,2.64613267]
[1753519838544,0.4425,3780.7,3779.7,2.64570088]
[1753519838740,0.4425,3780.7,3779.8,2.64562666]
[1753519838941,0.30424775,3780.7,3779.9,2.64556458]
[1753519839172,3.24,3780.8,3779.9,2.64556458]
[1753519839322,0.324,3780.7,3779.4,2.6458745]
[1753519839522,0.498,3780.8,3779.8,3.0]
[1753519839722,2.739,3780.7,3779.0,0.19568968]
[1753519840034,5.39300689,3780.7,3779.0,0.19568968]
[1753519840232,0.498,3780.6,3779.1,2.67259399]
[1753519840451,0.498,3780.6,3779.4,3.0]
[1753519840651,0.498,3780.6,3779.2,0.28682837]
[1753519840960,0.00897368,3780.5,3780.2,2.64529596]
[1753519841193,0.00897368,3780.5,3779.6,3.0]
[1753519841366,0.00897368,3780.5,3780.4,2.64522272]
[1753519841652,0.4425,3780.7,3779.6,3.0]
[1753519841815,0.00897522,3780.6,3780.2,2.6453155]
[1753519842021,0.94947522,3780.6,3779.6,3.0]
[1753519842222,2.735,3780.5,3779.7,2.67214255]
[1753519842455,0.4425,3780.4,3779.0,3.19568968]
[1753519842657,0.4425,3780.5,3779.0,0.19568968]
[1753519842819,3.24097522,3780.6,3780.5,2.64515275]
[1753519843019,1.31782274,3780.6,3780.5,0.132]
[1753519843238,3.68247522,3780.6,3780.5,0.132]
[1753519843558,0.94947522,3780.6,3780.5,0.132]
[1753519843754,3.68147522,3780.6,3780.5,0.132]
[1753519844123,0.94947522,3780.6,3780.5,0.132]
[1753519844469,0.45147522,3780.6,3780.5,0.132]
[1753519844841,0.45147522,3780.6,3780.5,2.77715275]
[1753519845463,0.4425,3780.6,3780.5,2.77715275]
[1753519845792,3.67847465,3780.6,3780.5,2.77715275]
[1753519846295,3.18047465,3780.6,3780.5,2.77715275]
[1753519846582,0.00897465,3780.6,3780.5,2.77715275]
[1753519846940,3.17547465,3780.6,3780.5,0.132]
[1753519847144,3.99102211,3780.6,3780.5,0.132]
[1753519847443,0.94947465,3780.6,3780.5,0.132]
[1753519847744,3.67247465,3780.6,3780.5,0.132]
[1753519848581,3.66947465,3780.6,3780.5,0.132]
[1753519848768,0.94947465,3780.6,3780.5,2.77715275]
[1753519848965,3.66847465,3780.6,3780.5,0.132]
[1753519849747,2.72697465,3780.6,3780.5,0.132]
[1753519849969,3.61147465,3780.6,3780.5,0.132]
[1753519850285,0.89347465,3780.6,3780.5,0.132]
[1753519850484,3.60847465,3780.6,3780.5,0.132]
[1753519850658,4.40977465,3780.6,3780.5,0.132]
[1753519850863,5.11525954,3780.6,3780.5,0.132]
[1753519851551,7.76034233,3780.6,3780.5,0.132]
[1753519851951,5.11525954,3780.6,3780.1,0.132]
[1753519852200,2.64555763,3780.0,3779.9,0.132]
[1753519852554,4.33135763,3780.0,3779.9,0.132]
[1753519852753,5.03800611,3780.0,3779.9,0.132]
[1753519853370,5.03800611,3780.0,3778.2,0.19919532]
[1753519853371,2.64573225,3779.7,3778.8,2.6462758]
[1753519853605,0.4343,3779.9,3777.9,2.64697318]
[1753519853901,0.0089743,3779.6,3779.3,2.64598407]
[1753519854258,0.0089743,3779.6,3779.5,0.132]